bitfinex/quotes_ETHUSD_20251118
["timestamp","ask_amount","ask_price","bid_price","bid_amount"]
[1763499131067,0.4952,3139.1,3138.5,0.405504]
[1763499131991,0.4952,3139.1,3138.4,0.66858505]
[1763499132772,0.4518,3139.2,3138.4,0.66858505]
[1763499132773,0.002,3139.3,3139.0,0.3407]
[1763499132976,0.002,3139.3,3139.0,0.3417]
[1763499133696,0.002,3139.3,3139.1,0.405504]
[1763499133986,0.002,3139.3,3139.2,0.746204]
[1763499139276,0.002,3139.3,3139.2,1.21456513]
[1763499139707,0.002,3139.3,3139.2,0.87386513]
[1763499140509,0.002,3139.3,3139.2,1.21456513]
[1763499141704,0.002,3139.7,3139.3,1.31249664]
[1763499141907,0.002,3139.7,3139.6,0.746204]
[1763499142100,0.4728,3141.3,3139.7,0.405504]
[1763499142295,0.4708,3141.1,3139.9,0.746204]
[1763499142816,0.002,3141.3,3139.9,0.746204]
[1763499142817,0.4708,3140.8,3139.9,1.21452888]
[1763499143682,0.002,3141.3,3140.0,0.405504]
[1763499143881,0.6512,3141.2,3140.3,0.925704]
[1763499144303,0.4728,3141.0,3140.3,0.925704]
[1763499144615,0.4728,3141.0,3139.9,3.31242367]
[1763499144781,0.002,3141.0,3139.9,3.31242367]
[1763499144983,0.002,3141.0,3140.1,3.18461195]
[1763499145191,0.002,3141.0,3140.2,0.0318451]
[1763499145406,0.002,3141.0,3140.2,0.46720283]
[1763499145686,0.002,3141.0,3140.1,6.3692239]
[1763499145914,0.002,3141.0,3140.1,3.18461195]
[1763499146117,0.1802,3140.9,3140.0,6.67940162]
[1763499146312,0.1802,3140.9,3140.0,7.31270627]
[1763499146480,0.4708,3140.8,3140.0,7.31270627]
[1763499146681,0.4708,3140.8,3140.1,1.31249664]
[1763499147378,0.4708,3140.8,3140.1,0.405504]
[1763499149984,0.4592,3140.2,3140.0,0.63330465]
[1763499150177,0.4708,3140.8,3139.9,0.12762488]
[1763499150178,0.4592,3140.1,3139.9,0.12762488]
[1763499150377,0.4708,3140.8,3139.9,0.12762488]
[1763499150378,0.4592,3140.0,3139.9,0.12762488]
[1763499150819,0.93,3140.0,3139.9,0.12762488]
[1763499153413,0.4708,3140.4,3139.9,0.53312888]
[1763499153625,0.4708,3140.4,3140.0,0.405504]
[1763499153852,0.4592,3140.0,3139.9,0.12762488]
[1763499153999,0.4708,3140.4,3139.9,0.12762488]
[1763499155123,0.4592,3140.0,3139.9,0.12762488]
[1763499155328,0.4708,3140.4,3140.0,0.405504]
[1763499155826,0.4592,3140.1,3139.5,0.405504]
[1763499156021,0.4592,3140.0,3139.5,0.405504]
[1763499156337,0.4592,3140.0,3139.7,0.405504]
[1763499157121,0.4708,3140.2,3139.7,0.405504]
[1763499157317,0.4994,3140.4,3139.5,0.405504]
[1763499157519,0.002,3140.8,3139.9,0.405504]
[1763499157740,0.4994,3140.7,3139.9,0.405504]
[1763499163212,0.002,3140.8,3140.1,0.405504]
[1763499164033,0.5014,3140.8,3140.3,0.405504]
[1763499164560,0.4901,3140.4,3139.1,4.32820283]
[1763499164710,0.5014,3140.8,3139.5,0.90699264]
[1763499164711,0.4901,3140.3,3139.5,0.90699264]
[1763499164911,0.4901,3140.3,3139.5,1.40839264]
[1763499165517,0.4901,3140.3,3139.6,0.405504]
[1763499165938,0.4901,3140.3,3139.6,1.31249664]
[1763499166216,0.4901,3140.3,3139.6,0.405504]
[1763499166812,0.6839,3139.7,3139.5,0.5014]
[1763499167105,0.4901,3139.6,3139.5,0.5014]
[1763499167275,0.9895,3139.6,3139.5,0.5014]
[1763499168468,0.9895,3139.6,3139.5,0.5024]
[1763499169772,0.1938,3139.9,3139.6,0.405504]
[1763499169975,0.4901,3139.7,3139.6,0.405504]
[1763499170308,0.4994,3139.8,3139.6,0.405504]
[1763499171013,0.4901,3139.7,3139.6,0.405504]
[1763499172922,0.9895,3139.7,3139.5,0.5024]
[1763499173111,0.4901,3139.6,3139.5,0.001]
[1763499173311,0.9895,3139.6,3139.5,0.001]
[1763499173916,0.9895,3139.6,3139.3,0.5024]
[1763499174193,0.4901,3139.4,3139.1,0.001]
[1763499174419,0.4901,3139.2,3139.1,0.5034]
[1763499174895,0.9895,3139.2,3139.1,0.5034]
[1763499175313,0.4994,3139.7,3139.2,0.405504]
[1763499175826,0.4901,3139.3,3139.2,0.405504]
[1763499176229,0.9895,3139.3,3139.2,0.405504]
[1763499177123,0.9895,3139.3,3139.1,0.5034]
[1763499177430,0.9895,3139.2,3139.1,0.5034]
[1763499180341,0.4901,3139.2,3139.1,0.5034]
[1763499180549,0.4994,3139.7,3139.2,0.405504]
[1763499181710,0.1938,3139.9,3139.3,0.03185423]
[1763499181910,0.1938,3139.9,3139.2,0.405504]
[1763499182342,0.4994,3139.8,3139.2,0.405504]
[1763499183345,0.4901,3139.3,3139.2,0.405504]
[1763499183755,0.9895,3139.3,3139.1,0.5034]
[1763499183915,0.4901,3139.2,3139.1,0.5034]
[1763499184119,0.9895,3139.2,3139.1,0.001]
[1763499186923,0.9442,3139.2,3139.1,0.406504]
[1763499190365,0.1938,3139.9,3139.1,0.406504]
[1763499190657,0.6568,3139.9,3139.1,0.406504]
[1763499191151,0.4812,3139.2,3139.1,0.406504]
[1763499191353,0.4812,3139.2,3139.1,0.001]
[1763499191578,0.9442,3139.2,3139.1,0.001]
[1763499195389,0.463,3139.7,3139.1,0.001]
[1763499195680,0.463,3139.5,3139.1,0.001]
[1763499195887,0.4812,3139.2,3139.1,0.001]
[1763499196988,0.9442,3139.2,3139.1,0.001]
[1763499200050,0.4812,3139.2,3139.1,0.001]
[1763499200252,0.463,3139.5,3139.1,0.001]
[1763499200478,0.4812,3139.2,3139.1,0.001]
[1763499200679,0.463,3139.5,3139.1,0.001]
[1763499200862,0.4567,3139.2,3139.1,0.001]
[1763499201260,0.9258,3139.2,3139.1,0.001]
[1763499201464,0.4567,3139.2,3139.1,0.001]
[1763499202388,0.9258,3139.2,3139.1,0.001]
[1763499205352,0.1938,3139.9,3139.1,0.001]
[1763499207376,0.4691,3139.8,3139.1,0.001]
[1763499207576,0.4567,3139.2,3139.1,0.001]
[1763499207979,0.4691,3139.8,3139.1,0.001]
[1763499208197,0.1938,3139.9,3139.1,0.001]
[1763499208396,0.6629,3139.9,3139.1,0.001]
[1763499209403,0.1938,3139.9,3139.1,0.001]
[1763499209611,0.4691,3140.3,3139.1,1.3453529]
[1763499209818,0.4691,3140.5,3139.3,0.405504]
[1763499210318,0.642,3139.4,3139.2,0.1938]
[1763499210489,0.642,3139.4,3139.1,0.001]
[1763499210690,0.4691,3139.7,3139.1,0.001]
[1763499210895,0.6544,3139.7,3139.1,0.001]
[1763499212821,0.4691,3139.6,3139.1,0.001]
[1763499214683,0.1853,3139.9,3139.1,0.001]
[1763499214889,0.4691,3139.6,3139.1,0.001]
[1763499215298,0.002,3140.6,3139.2,0.405504]
[1763499215499,0.4691,3140.3,3139.2,0.405504]
[1763499215707,0.4691,3140.3,3139.1,0.406504]
[1763499217806,0.4691,3140.3,3139.3,0.405504]
[1763499218815,0.4711,3140.3,3139.3,0.405504]
[1763499221605,0.4711,3140.3,3139.2,0.405504]
[1763499222738,0.4711,3140.3,3139.1,7.84606709]
[1763499222944,0.4711,3140.3,3139.4,0.405504]
[1763499223440,0.4711,3140.3,3139.2,0.405504]
[1763499223736,0.4711,3140.3,3139.1,10.62616731]
[1763499223737,0.002,3140.3,3139.8,0.405504]
[1763499224431,0.002,3140.3,3139.7,0.90699264]
[1763499224432,0.002,3140.3,3140.2,1.31249664]
[1763499225427,0.002,3140.3,3139.4,0.4711]
[1763499225428,0.4807,3140.3,3140.0,0.64733981]
[1763499225631,0.002,3140.3,3139.7,0.12764789]
[1763499225819,0.002,3140.3,3139.8,0.405504]
[1763499226739,0.4566,3140.3,3139.8,0.405504]
[1763499230116,0.002,3140.3,3139.8,0.405504]
[1763499230346,0.4546,3140.2,3139.8,0.405504]
[1763499230710,0.4546,3140.2,3139.3,0.405504]
[1763499230910,0.4546,3140.2,3139.4,0.4546]
[1763499231708,0.6624,3139.5,3139.4,0.4546]
[1763499232132,1.117,3139.5,3139.1,0.001]
[1763499232336,0.4546,3139.4,3139.1,0.001]
[1763499232513,0.1837,3139.8,3139.1,0.001]
[1763499232939,0.4546,3139.7,3139.1,0.001]
[1763499235342,0.002,3140.3,3139.7,1.31249664]
[1763499235944,0.002,3140.3,3139.9,0.405504]
[1763499236311,0.4787,3140.0,3139.9,0.405504]
[1763499236532,0.4787,3140.0,3139.2,0.405504]
[1763499236747,0.6624,3139.9,3139.5,0.4787]
[1763499237243,1.117,3139.9,3139.5,0.4787]
[1763499239559,1.117,3139.9,3139.2,0.405504]
[1763499239762,1.117,3139.9,3139.4,0.405504]
[1763499240633,0.002,3140.2,3139.4,0.405504]
[1763499241466,0.002,3140.2,3139.8,0.405504]
[1763499242255,0.002,3140.2,3140.1,6.93807445]
[1763499242873,0.002,3140.2,3140.1,7.0656977]
[1763499243793,0.002,3140.2,3140.1,0.53312725]
[1763499244076,0.9353,3140.2,3140.1,0.405504]
[1763499244448,0.002,3140.2,3140.1,0.405504]
[1763499245175,0.4807,3140.2,3140.1,0.405504]
[1763499245465,0.002,3140.2,3140.1,0.405504]
[1763499245676,0.002,3140.2,3140.1,6.96992056]
[1763499245882,0.002,3140.2,3140.1,6.93807445]
[1763499246067,0.002,3140.2,3140.1,7.0656977]
[1763499246448,0.002,3140.2,3140.1,7.97269034]
[1763499248067,0.002,3140.3,3140.2,1.31249664]
[1763499249693,0.002,3140.6,3140.2,1.31249664]
[1763499250254,0.4521,3140.3,3140.1,0.12762325]
[1763499250487,0.49,3140.5,3140.0,0.62486366]
[1763499250488,0.4521,3140.2,3140.0,0.62486366]
[1763499250796,0.4521,3140.2,3140.0,0.405504]
[1763499250969,0.492,3140.6,3140.0,0.405504]
[1763499253194,0.492,3140.6,3140.1,0.03184611]
[1763499253395,0.492,3140.6,3140.0,0.406504]
[1763499253396,0.002,3140.6,3140.0,0.406504]
[1763499254103,0.002,3140.6,3140.2,1.31249664]
[1763499255002,0.002,3140.6,3140.2,5.17249664]
[1763499255205,0.002,3140.6,3140.2,1.31249664]
[1763499255597,0.492,3140.6,3140.0,0.6393039]
[1763499255791,0.002,3140.6,3140.1,0.405504]
[1763499256094,0.002,3140.6,3140.4,0.405504]
[1763499260413,0.002,3140.8,3140.6,0.405504]
[1763499260817,0.002,3141.2,3140.6,0.405504]
[1763499260981,0.002,3141.4,3141.2,7.98096191]
[1763499262214,0.002,3141.4,3141.2,8.64416191]
[1763499262612,0.4725,3141.7,3141.3,0.405504]
[1763499262613,0.44706652,3141.7,3141.3,0.405504]
[1763499262788,0.1907,3142.1,3141.3,0.405504]
[1763499263116,0.4612,3141.4,3141.3,0.405504]
[1763499263816,0.1907,3142.1,3141.3,0.405504]
[1763499264515,0.4725,3142.0,3141.3,0.405504]
[1763499266511,0.1907,3142.1,3141.3,1.31249664]
[1763499266721,0.4725,3142.0,3141.4,0.405504]
[1763499267987,0.4725,3142.0,3141.6,0.405504]
[1763499268392,0.4612,3141.7,3141.4,0.405504]
[1763499268603,0.4612,3141.6,3141.4,0.405504]
[1763499268814,0.4612,3141.5,3141.4,0.405504]
[1763499269232,0.9337,3141.5,3141.4,1.78499664]
[1763499269398,0.9337,3141.5,3141.4,1.31249664]
[1763499270927,0.4725,3141.9,3141.4,1.31249664]
[1763499272327,0.4612,3141.5,3141.4,1.31249664]
[1763499272532,0.4612,3141.5,3141.2,0.9337]
[1763499272825,0.4612,3141.3,3141.1,0.405504]
[1763499273027,0.4725,3141.4,3141.1,0.405504]
[1763499273329,0.4612,3141.2,3141.1,0.405504]
[1763499274138,0.9337,3141.2,3141.1,0.405504]
[1763499274332,0.9337,3141.2,3140.4,3.86]
[1763499274521,0.9337,3141.1,3140.4,0.90699264]
[1763499274828,0.9337,3141.1,3140.8,0.405504]
[1763499275029,0.4725,3141.0,3140.8,0.405504]
[1763499275330,0.6445,3140.9,3140.2,6.66846527]
[1763499275537,0.4612,3140.8,3140.6,0.405504]
[1763499275702,0.9337,3140.8,3140.6,0.405504]
[1763499275902,0.4612,3140.7,3140.4,0.405504]
[1763499276105,0.9337,3140.7,3140.4,1.061304]
[1763499278502,0.1833,3140.9,3140.4,1.061304]
[1763499278707,0.1833,3141.0,3140.4,1.061304]
[1763499279036,0.4629,3141.2,3140.5,0.405504]
[1763499280213,0.1823,3141.9,3140.7,0.405504]
[1763499280442,0.1823,3141.9,3140.9,0.405504]
[1763499280738,0.4629,3141.8,3140.9,0.405504]
[1763499280912,0.473,3141.0,3140.9,0.868404]
[1763499281824,0.9359,3141.0,3140.9,0.868404]
[1763499282251,0.9359,3141.0,3140.4,0.405504]
[1763499282417,0.6452,3140.9,3140.6,0.405504]
[1763499283427,0.4629,3140.8,3140.6,0.405504]
[1763499284032,0.4629,3140.8,3140.3,0.90699264]
[1763499284033,0.473,3140.7,3140.3,0.90699264]
[1763499284337,0.473,3140.7,3140.0,0.6393039]
[1763499284338,0.473,3140.4,3140.2,0.4629]
[1763499284540,0.473,3140.4,3140.3,0.405504]
[1763499284727,0.1823,3140.9,3140.3,0.405504]
[1763499284913,0.473,3140.4,3140.3,0.405504]
[1763499285315,0.9359,3140.4,3140.3,0.405504]
[1763499285542,0.1823,3140.9,3140.3,0.405504]
[1763499285744,0.4629,3140.8,3140.3,1.31249664]
[1763499286240,0.473,3140.4,3140.3,0.405504]
[1763499287721,0.4629,3140.6,3140.3,0.405504]
[1763499290350,0.473,3140.4,3140.3,0.405504]
[1763499290861,0.9359,3140.4,3140.3,0.405504]
[1763499293555,0.9359,3140.4,3140.2,0.001]
[1763499293761,0.9359,3140.3,3140.2,0.001]
[1763499300266,0.9359,3140.3,3140.0,0.001]
[1763499300468,0.473,3139.5,3139.0,0.001]
[1763499300643,0.473,3139.1,3138.5,0.001]
[1763499300844,0.6553,3138.9,3138.5,0.001]
[1763499301347,1.1182,3138.9,3138.5,0.001]
[1763499301547,1.1182,3138.9,3138.5,0.406504]
[1763499301774,1.1182,3138.9,3138.5,0.001]
[1763499302012,0.1823,3139.2,3138.5,0.406504]
[1763499302359,0.1823,3139.2,3138.5,1.31349664]
[1763499302580,0.1823,3139.2,3138.5,0.406504]
[1763499302981,0.6452,3139.2,3138.5,0.406504]
[1763499303479,0.473,3138.9,3138.5,0.406504]
[1763499303976,0.9359,3138.9,3138.5,0.406504]
[1763499304779,0.473,3138.9,3138.5,0.406504]
[1763499305500,0.1823,3139.5,3138.7,0.406504]
[1763499305662,0.4629,3139.7,3138.7,0.406504]
[1763499305852,0.4629,3139.7,3138.9,0.405504]
[1763499306048,0.4629,3139.7,3138.9,1.31249664]
[1763499306274,0.1823,3139.8,3139.0,0.90699264]
[1763499306554,0.1823,3140.0,3139.3,0.405504]
[1763499307194,0.47,3139.9,3138.9,0.405504]
[1763499307487,0.4626,3139.3,3138.9,0.405504]
[1763499307651,0.4626,3139.0,3138.8,0.001]
[1763499307850,0.9326,3139.0,3138.8,0.001]
[1763499308080,0.4626,3138.9,3138.8,0.001]
[1763499308289,0.47,3139.4,3138.8,0.001]
[1763499308492,0.4626,3138.9,3138.8,0.001]
[1763499309266,0.47,3139.8,3138.8,0.001]
[1763499311887,0.4626,3138.9,3138.8,0.001]
[1763499312765,0.47,3139.2,3138.8,0.001]
[1763499313797,0.4626,3138.9,3138.8,0.001]
[1763499313987,0.47,3139.2,3138.8,0.001]
[1763499314999,0.1823,3140.0,3138.8,0.001]
[1763499315200,0.47,3139.5,3138.8,0.001]
[1763499315388,0.47,3139.9,3138.8,0.001]
[1763499315588,0.47,3139.8,3138.8,0.001]
[1763499317894,0.6523,3140.0,3139.1,1.31249664]
[1763499318298,0.47,3139.9,3139.1,1.31249664]
[1763499319102,0.1824,3140.2,3139.6,1.31249664]
[1763499319411,0.6524,3140.2,3139.6,1.31249664]
[1763499320114,0.1824,3140.5,3139.6,1.34434783]
[1763499320419,0.6524,3140.8,3140.1,1.31249664]
[1763499321010,0.6524,3140.8,3140.1,1.94335694]
[1763499322658,0.4739,3140.2,3139.5,0.64597536]
[1763499322863,0.6734,3139.6,3138.9,0.001]
[1763499323208,0.4739,3139.0,3138.9,0.001]
[1763499323407,0.9598,3139.0,3138.9,0.001]
[1763499323644,0.1995,3139.6,3138.9,0.001]
[1763499323950,0.4859,3139.3,3138.9,0.001]
[1763499324508,0.4739,3139.0,3138.9,0.001]
[1763499325350,0.6854,3139.6,3138.9,0.001]
[1763499325724,0.4859,3139.5,3138.9,0.001]
[1763499328122,0.4739,3139.0,3138.9,0.001]
[1763499328510,0.9598,3139.0,3138.9,0.001]
[1763499329244,0.4859,3139.3,3138.9,0.001]
[1763499330119,0.4739,3139.0,3138.9,0.001]
[1763499331421,0.6854,3139.6,3138.9,0.001]
[1763499331617,0.4739,3139.0,3138.9,0.001]
[1763499332055,0.4739,3139.0,3138.8,0.001]
[1763499332056,0.9598,3139.0,3138.8,0.001]
[1763499332229,0.4739,3138.9,3138.8,0.001]
[1763499332433,0.9598,3138.9,3138.3,0.001]
[1763499332636,0.9598,3138.9,3138.1,0.001]
[1763499332637,0.4739,3138.5,3138.1,0.001]
[1763499332832,0.4739,3138.2,3138.1,0.001]
[1763499333145,0.4739,3138.2,3137.3,0.001]
[1763499333319,0.6734,3137.8,3137.3,0.001]
[1763499333518,0.4739,3137.7,3137.3,0.001]
[1763499333719,0.9598,3137.7,3137.3,0.001]
[1763499337160,0.1949,3138.1,3137.3,0.001]
[1763499337648,0.6922,3138.1,3137.3,0.001]
[1763499338076,0.4562,3137.7,3137.3,0.001]
[1763499338215,0.6922,3138.1,3137.3,0.001]
[1763499338820,0.1949,3138.1,3137.3,0.001]
[1763499339020,0.4562,3137.7,3137.3,0.001]
[1763499339423,0.9535,3137.7,3137.3,0.001]
[1763499340741,0.9535,3137.7,3137.5,0.001]
[1763499341145,0.9555,3137.7,3137.5,0.001]
[1763499342119,0.4582,3137.7,3137.5,0.001]
[1763499342322,0.002,3137.7,3137.5,0.001]
[1763499343146,0.9555,3137.7,3137.5,0.001]
[1763499345289,0.002,3137.7,3137.5,0.001]
[1763499345474,0.4582,3137.7,3137.5,0.001]
[1763499345669,0.9555,3137.7,3137.5,0.001]
[1763499352058,0.002,3137.7,3137.5,0.001]
[1763499352295,0.4582,3137.7,3137.5,0.001]
[1763499353574,0.9555,3137.7,3137.5,0.001]
[1763499355287,0.002,3137.7,3137.5,0.001]
[1763499355483,0.9555,3137.7,3137.5,0.001]
[1763499358465,0.4562,3137.6,3137.3,0.001]
[1763499358729,0.4562,3137.4,3137.3,0.001]
[1763499359136,0.9535,3137.4,3137.3,0.001]
[1763499360334,0.9535,3137.4,3137.2,0.001]
[1763499360519,0.9535,3137.3,3137.2,0.001]
[1763499360924,0.9535,3137.3,3134.3,3.19043869]
[1763499361101,4.26799264,3137.5,3134.3,6.52929905]
[1763499361102,0.4562,3137.0,3134.3,6.52929905]
[1763499361304,1.60795113,3136.9,3134.4,0.3335444]
[1763499361504,0.8379696,3136.8,3134.4,0.1667705]
[1763499361705,0.90699264,3136.6,3134.1,0.0396]
[1763499361947,0.29545449,3136.5,3134.1,0.0396]
[1763499362188,0.29545449,3136.5,3134.2,0.405504]
[1763499362189,0.79275449,3136.5,3134.2,0.405504]
[1763499362461,0.4973,3136.5,3134.2,0.64508638]
[1763499362636,0.4973,3136.4,3134.2,0.64508638]
[1763499362820,0.4973,3136.4,3134.1,0.20640598]
[1763499363000,0.4973,3136.4,3134.2,0.405504]
[1763499363207,0.4973,3136.4,3134.1,0.20640598]
[1763499363447,0.4973,3136.4,3134.1,0.84997895]
[1763499363621,0.4973,3136.4,3134.2,0.405504]
[1763499369921,0.4973,3136.4,3134.8,1.31249664]
[1763499371957,0.4973,3136.4,3134.3,0.90699264]
[1763499372157,0.1848,3135.0,3134.1,0.84190522]
[1763499372529,0.1848,3135.0,3134.2,0.405504]
[1763499372863,0.1848,3135.0,3134.1,0.84190522]
[1763499373156,0.1848,3135.0,3134.2,0.405504]
[1763499373324,0.1848,3135.0,3134.1,0.67509924]
[1763499373524,0.1848,3135.0,3134.2,0.405504]
[1763499374879,0.1848,3135.3,3134.2,0.405504]
[1763499375431,0.6626,3135.3,3134.2,0.405504]
[1763499375831,0.4778,3135.2,3134.2,0.405504]
[1763499377372,0.4668,3134.3,3134.1,0.0396]
[1763499377680,0.4778,3135.2,3134.1,0.0396]
[1763499377681,0.4668,3134.2,3134.1,0.0396]
[1763499378987,0.6626,3134.4,3134.1,0.0396]
[1763499380389,0.1848,3135.3,3134.2,0.405504]
[1763499380390,0.6626,3135.3,3134.2,0.405504]
[1763499381155,0.1848,3135.3,3134.2,0.405504]
[1763499381454,0.4863,3135.2,3134.2,0.405504]
[1763499382651,0.1848,3135.3,3134.2,0.405504]
[1763499382856,0.4863,3135.2,3134.2,0.405504]
[1763499383788,0.191,3135.6,3134.4,0.405504]
[1763499384090,0.191,3135.6,3134.3,0.405504]
[1763499384091,0.6773,3135.6,3134.3,0.405504]
[1763499384799,0.6773,3135.6,3134.2,0.405504]
[1763499385307,0.4863,3135.5,3134.2,0.405504]
[1763499386923,3.5559,3136.9,3134.2,0.405504]
[1763499386924,0.4863,3136.2,3134.2,0.405504]
[1763499387101,0.191,3136.3,3134.6,1.31249664]
[1763499387716,0.4863,3136.2,3134.6,1.31249664]
[1763499388610,0.4863,3136.2,3134.3,1.31249664]
[1763499388814,0.4863,3136.2,3134.5,0.3607355]
[1763499389585,0.4863,3136.2,3134.1,0.94659264]
[1763499389911,0.4863,3136.2,3134.1,0.0396]
[1763499390811,0.4863,3136.2,3134.2,0.405504]
[1763499392894,0.4863,3136.2,3134.3,0.90699264]
[1763499393098,0.4863,3136.2,3134.4,0.405504]
[1763499395234,0.4863,3136.2,3134.6,0.405504]
[1763499396235,0.4863,3136.2,3134.8,0.405504]
[1763499396530,0.191,3136.3,3134.8,0.405504]
[1763499396833,0.6824,3136.3,3134.8,0.405504]
[1763499397327,0.4914,3136.2,3134.8,0.405504]
[1763499400711,0.191,3136.3,3134.8,0.405504]
[1763499400712,0.191,3136.3,3135.0,0.405504]
[1763499401232,0.6824,3136.3,3135.0,0.405504]
[1763499401739,0.6824,3136.3,3135.2,0.405504]
[1763499401939,0.6824,3136.3,3135.0,0.405504]
[1763499402140,0.4914,3136.2,3135.0,0.405504]
[1763499406450,0.6871,3135.1,3134.0,4.02775154]
[1763499406653,0.6871,3135.1,3134.2,0.90699264]
[1763499406654,0.1947,3135.1,3134.2,0.90699264]
[1763499406953,0.1947,3135.3,3134.1,3.23130202]
[1763499407355,0.1947,3135.3,3134.2,0.90699264]
[1763499407662,0.1947,3135.3,3134.3,0.405504]
[1763499408047,0.4914,3135.5,3134.2,0.90699264]
[1763499408345,0.6861,3135.6,3134.3,0.405504]
[1763499408736,0.1947,3135.6,3134.5,0.405504]
[1763499410459,0.1947,3135.6,3134.5,1.31249664]
[1763499410663,0.1947,3135.6,3134.7,0.405504]
[1763499411163,0.1947,3135.6,3134.5,0.405504]
[1763499413468,0.6861,3135.6,3134.5,0.405504]
[1763499413969,0.4914,3135.5,3134.5,0.405504]
[1763499420265,0.1947,3135.6,3134.5,0.405504]
[1763499420792,0.002,3136.2,3134.7,0.405504]
[1763499420950,0.002,3136.2,3134.9,1.31249664]
[1763499420951,0.1947,3135.9,3134.9,1.31249664]
[1763499421449,0.6861,3135.9,3134.9,1.31249664]
[1763499421858,0.4914,3135.8,3134.9,1.31249664]
[1763499422769,0.4924,3135.0,3134.2,3.86]
[1763499422969,0.4924,3135.0,3134.0,0.16775154]
[1763499422970,0.4924,3134.9,3134.0,0.16775154]
[1763499423165,0.4914,3135.7,3134.2,0.405504]
[1763499423385,0.4914,3135.8,3134.4,0.405504]
[1763499423899,0.4914,3135.8,3134.2,0.405504]
[1763499424089,0.4914,3135.8,3134.1,0.0406]
[1763499424489,0.4914,3135.8,3134.2,0.405504]
[1763499427915,0.4934,3135.8,3134.2,0.405504]
[1763499436728,0.6481,3134.3,3134.1,0.0406]
[1763499436891,0.4934,3135.8,3134.1,0.0406]
[1763499437087,0.195,3134.5,3134.1,0.0406]
[1763499437545,0.6595,3134.5,3134.1,0.0406]
[1763499438427,0.195,3134.5,3134.1,0.0406]
[1763499438618,0.4645,3134.4,3134.1,0.0406]
[1763499438819,0.195,3134.8,3134.2,0.405504]
[1763499439403,0.6595,3134.8,3134.2,0.405504]
[1763499439905,0.4645,3134.7,3134.2,0.405504]
[1763499444908,0.4665,3134.7,3134.2,0.405504]
[1763499448844,0.4742,3134.3,3134.2,0.405504]
[1763499449560,0.4665,3134.7,3134.3,0.90699264]
[1763499450128,0.4742,3134.4,3134.3,0.405504]
[1763499450338,0.002,3134.7,3134.4,1.31249664]
[1763499450860,0.5,3134.7,3134.4,1.31249664]
[1763499451215,0.4742,3134.5,3134.2,0.405504]
[1763499452130,0.9722,3134.5,3134.2,0.405504]
[1763499454492,0.4742,3134.3,3134.1,0.94759264]
[1763499454666,0.002,3134.7,3134.1,0.94759264]
[1763499454667,0.4742,3134.2,3134.1,0.0406]
[1763499455181,0.9722,3134.2,3134.1,0.0406]
[1763499455552,1.55566294,3134.2,3134.1,0.0406]
[1763499457081,0.9722,3134.2,3134.1,0.0406]
[1763499464189,5.83462941,3134.2,3134.1,0.0406]
[1763499464880,10.10662205,3134.2,3133.8,0.001]
[1763499465078,5.32122941,3133.9,3133.8,0.001]
[1763499465484,5.77202941,3133.9,3133.8,0.001]
[1763499465880,6.34923235,3133.9,3133.8,0.001]
[1763499466794,1.48680294,3133.9,3133.8,0.001]
[1763499467002,0.9096,3133.9,3133.8,0.001]
[1763499469801,5.77202941,3133.9,3133.8,0.001]
[1763499476083,0.9096,3133.9,3133.8,0.001]
[1763499476782,0.4588,3133.9,3133.8,0.001]
[1763499476987,0.9096,3133.9,3133.8,0.001]
[1763499479330,0.4588,3133.9,3133.8,0.001]
[1763499479489,0.9096,3133.9,3133.8,0.001]
[1763499479687,0.002,3134.5,3133.8,0.001]
[1763499479892,0.4508,3134.4,3133.8,0.001]
[1763499480116,0.4588,3133.9,3133.8,0.001]
[1763499480323,0.002,3134.5,3133.8,0.001]
[1763499480502,0.002,3134.5,3134.1,4.86242941]
[1763499480712,0.002,3134.5,3134.4,5.26793341]
[1763499480922,0.002,3134.5,3134.4,6.17492605]
[1763499481091,0.002,3134.5,3134.4,1.44036345]
[1763499482321,0.002,3134.5,3134.4,1.03485945]
[1763499482538,0.4608,3134.5,3134.4,0.12786681]
[1763499482752,0.9116,3134.5,3133.8,0.001]
[1763499482929,0.9116,3134.5,3133.9,0.12789502]
[1763499483332,0.4508,3134.4,3133.9,0.12789502]
[1763499484111,0.4588,3134.0,3133.9,0.12789502]
[1763499484517,0.4588,3134.0,3133.8,0.001]
[1763499484735,0.4588,3134.0,3133.8,0.12891138]
[1763499484938,0.4508,3134.2,3133.8,0.12891138]
[1763499485251,0.4588,3133.9,3133.8,0.001]
[1763499485810,0.9096,3133.9,3133.8,0.001]
[1763499486823,0.4588,3133.9,3133.8,0.001]
[1763499487223,0.9541,3133.9,3133.8,0.001]
[1763499493844,0.4953,3134.4,3133.8,0.001]
[1763499494241,0.4773,3133.9,3133.8,0.001]
[1763499494754,0.9726,3133.9,3133.8,0.001]
[1763499495074,0.4773,3133.9,3133.8,0.001]
[1763499495266,0.4953,3134.1,3133.8,0.001]
[1763499495754,0.4773,3133.9,3133.8,0.001]
[1763499496143,0.9726,3133.9,3133.8,0.001]
[1763499497961,0.9726,3133.9,3131.4,12.8827464]
[1763499498168,0.9726,3133.8,3132.5,0.12795721]